Workbook

Sheet ZADANIOWY
A1: WYKONANIE PLANU WYDATKÓW w UKŁADZIE ZADANIOWYM | M1: Załącznik Nr 2 do uchwały Nr XII/91/2025 Rady Dzielnicy Białołęka m.st. Warszawy z dnia 12 marca 2025 r. | Z1: =IF(COUNTA(Z3:Z15594)=0,"",COUNTA(Z3:Z15594)) -> 20
A3: D.02.000 | F3: na 31.12.2024 | J3: =J11233 -> 879277208 | K3: =K11233 -> 872500876.1 | L3: =K3/J3 -> 0.9922932929 | M3: 384096606 | N3: 379932799.6 | O3: =N3/M3 -> 0.9891594813 | P3: 0 | Q3: 0 | R3: 0 | S3: 0 | T3: 879277208 | U3: 384096606
A4: PROGRAM | B4: OPIS | C4: S/P/Z/PZ | D4: Header | E4: DZIAŁ | F4: ROZDZIAŁ | G4: § | H4: NAZWA PARAGRAFU | I4: OBSZAR FUNKCJONALNY | J4: PLAN | K4: Wykonanie | L4: % | M4: w tym Urząd m.st. Warszawy | N4: Wykonanie | O4: % | P4: PLAN Zmiana[-] | Q4: PLAN Zmiana[+] | R4: w tym Urząd Zmiana[-] | S4: w tym Urząd Zmiana[+] | T4: PLAN PO ZMIANIE | U4: w tym Urząd PO ZMIANIE | V4: WYPEŁNIONE POZYCJE | W4: WYPEŁNIONE ZMIANY | X4: =IF(COUNTIF(X5:X11232,"błędny urząd")<>0,"ŹLE","") ->  | Y4: =IF(COUNTIF(Y5:Y11232,"ujemny plan")<>0,"ŹLE","") -> 
A5: I | B5: TRANSPORT I KOMUNIKACJA | C5: I sfera | D5: T | J5: =SUM(J198,J6) -> 12811549 | K5: 12668825.24 | L5: =K5/J5 -> 0.9888597577 | M5: 12811549 | N5: 12668825.24 | O5: =N5/M5 -> 0.9888597577 | P5: 0 | Q5: 0 | R5: 0 | S5: 0 | T5: 12811549 | U5: 12811549 | V5: =IF(SUM(J5:U5)>0,"Tak","") -> Tak | W5: =IF(SUM(P5:S5)>0,"Tak","") ->  | X5: =IF(OR(J5<M5,T5<U5,P5<R5,Q5<S5),"błędny urząd","") ->  | Y5: =IF(OR(J5<0,M5<0,T5<0,U5<0),"ujemny plan","") -> 
A6: I/1 | B6: Komunikacja zbiorowa | C6: 1 program | D6: T | J6: =SUM(J178,J165,J39,J7) -> 0 | M6: 0 | P6: 0 | Q6: 0 | R6: 0 | S6: 0 | T6: 0 | U6: 0
A7: B/I/1/1 | B7: Zakup usług komunikacji miejskiej | C7: 1 zadanie | D7: T | J7: =SUM(J35,J31,J27,J20,J12,J8) -> 0 | M7: 0 | P7: 0 | Q7: 0 | R7: 0 | S7: 0 | T7: 0 | U7: 0
A8: B/I/1/1/1 | B8: Metro Warszawskie | C8: 1 podzadanie | D8: T | E8: 600 | F8: 60004 | J8: =SUM(J9) -> 0 | M8: 0 | P8: 0 | Q8: 0 | R8: 0 | S8: 0 | T8: 0 | U8: 0
A9: B/I/1/1/1 | B9: Metro Warszawskie | C9: 1 podzadanie | D9: NIE | E9: 600 | F9: 60004 | J9: =SUM(J10:J11) -> 0 | M9: 0 | P9: 0 | Q9: 0 | R9: 0 | S9: 0 | T9: 0 | U9: 0
A10: B/I/1/1/1 | B10: Metro Warszawskie | C10: 1 podzadanie | D10: NIE | E10: 600 | F10: 60004 | G10: 4300 | H10: Zakup usług pozostałych | I10: GMMW | T10: =J10+Q10-P10 -> 0 | U10: =M10+S10-R10 -> 0 | V10: =IF(SUM(J10:U10)>0,"Tak","") ->  | W10: =IF(SUM(P10:S10)>0,"Tak","") ->  | X10: =IF(OR(J10<M10,T10<U10,P10<R10,Q10<S10),"błędny urząd","") ->  | Y10: =IF(OR(J10<0,M10<0,T10<0,U10<0),"ujemny plan","") -> 
A11: B/I/1/1/1 | B11: Metro Warszawskie | C11: 1 podzadanie | D11: NIE | E11: 600 | F11: 60004 | G11: 4530 | H11: Podatek od towarów i usług (VAT) | I11: GMMW | T11: =J11+Q11-P11 -> 0 | U11: =M11+S11-R11 -> 0 | V11: =IF(SUM(J11:U11)>0,"Tak","") ->  | W11: =IF(SUM(P11:S11)>0,"Tak","") ->  | X11: =IF(OR(J11<M11,T11<U11,P11<R11,Q11<S11),"błędny urząd","") ->  | Y11: =IF(OR(J11<0,M11<0,T11<0,U11<0),"ujemny plan","") -> 
A12: B/I/1/1/2 | B12: Miejskie Zakłady Autobusowe | C12: 2 podzadanie | D12: T | E12: 600 | F12: 60004 | J12: =SUM(J13) -> 0 | M12: 0 | P12: 0 | Q12: 0 | R12: 0 | S12: 0 | T12: 0 | U12: 0
A13: B/I/1/1/2 | B13: Miejskie Zakłady Autobusowe | C13: 2 podzadanie | D13: NIE | E13: 600 | F13: 60004 | J13: =SUM(J14:J19) -> 0 | M13: 0 | P13: 0 | Q13: 0 | R13: 0 | S13: 0 | T13: 0 | U13: 0
A14: B/I/1/1/2 | B14: Miejskie Zakłady Autobusowe | C14: 2 podzadanie | D14: NIE | E14: 600 | F14: 60004 | G14: 4300 | H14: Zakup usług pozostałych | I14: GUUW | T14: 0 | U14: 0
A15: B/I/1/1/2 | B15: Miejskie Zakłady Autobusowe | C15: 2 podzadanie | D15: NIE | E15: 600 | F15: 60004 | G15: 4300 | H15: Zakup usług pozostałych | I15: GMMW | T15: 0 | U15: 0
A16: B/I/1/1/2 | B16: Miejskie Zakłady Autobusowe | C16: 2 podzadanie | D16: NIE | E16: 600 | F16: 60004 | G16: 4300 | H16: Zakup usług pozostałych | I16: GPGM | T16: 0 | U16: 0
A17: B/I/1/1/2 | B17: Miejskie Zakłady Autobusowe | C17: 2 podzadanie | D17: NIE | E17: 600 | F17: 60004 | G17: 4370 | H17: Zakup usług związanych z pomocą obywatelom Ukrainy | I17: GUUW | T17: 0 | U17: 0
A18: B/I/1/1/2 | B18: Miejskie Zakłady Autobusowe | C18: 2 podzadanie | D18: NIE | E18: 600 | F18: 60004 | G18: 4530 | H18: Podatek od towarów i usług (VAT) | I18: GUUW | T18: 0 | U18: 0
A19: B/I/1/1/2 | B19: Miejskie Zakłady Autobusowe | C19: 2 podzadanie | D19: NIE | E19: 600 | F19: 60004 | G19: 4530 | H19: Podatek od towarów i usług (VAT) | I19: GMMW | T19: 0 | U19: 0
A20: B/I/1/1/3 | B20: Pozostali przewoźnicy autobusowi | C20: 3 podzadanie | D20: T | E20: 600 | F20: 60004 | J20: =SUM(J21) -> 0 | M20: 0 | P20: 0 | Q20: 0 | R20: 0 | S20: 0 | T20: 0 | U20: 0
A21: B/I/1/1/3 | B21: Pozostali przewoźnicy autobusowi | C21: 3 podzadanie | D21: NIE | E21: 600 | F21: 60004 | J21: =SUM(J22:J26) -> 0 | M21: 0 | P21: 0 | Q21: 0 | R21: 0 | S21: 0 | T21: 0 | U21: 0
A22: B/I/1/1/3 | B22: Pozostali przewoźnicy autobusowi | C22: 3 podzadanie | D22: NIE | E22: 600 | F22: 60004 | G22: 4300 | H22: Zakup usług pozostałych | I22: GUUW | T22: 0 | U22: 0
A23: B/I/1/1/3 | B23: Pozostali przewoźnicy autobusowi | C23: 3 podzadanie | D23: NIE | E23: 600 | F23: 60004 | G23: 4300 | H23: Zakup usług pozostałych | I23: GMMW | T23: 0 | U23: 0
A24: B/I/1/1/3 | B24: Pozostali przewoźnicy autobusowi | C24: 3 podzadanie | D24: NIE | E24: 600 | F24: 60004 | G24: 4370 | H24: Zakup usług związanych z pomocą obywatelom Ukrainy | I24: GUUW | T24: 0 | U24: 0
A25: B/I/1/1/3 | B25: Pozostali przewoźnicy autobusowi | C25: 3 podzadanie | D25: NIE | E25: 600 | F25: 60004 | G25: 4530 | H25: Podatek od towarów i usług (VAT) | I25: GUUW | T25: 0 | U25: 0
A26: B/I/1/1/3 | B26: Pozostali przewoźnicy autobusowi | C26: 3 podzadanie | D26: NIE | E26: 600 | F26: 60004 | G26: 4530 | H26: Podatek od towarów i usług (VAT) | I26: GMMW | T26: 0 | U26: 0
A27: B/I/1/1/4 | B27: Szybka Kolej Miejska | C27: 4 podzadanie | D27: T | E27: 600 | F27: 60004 | J27: =SUM(J28) -> 0 | M27: 0 | P27: 0 | Q27: 0 | R27: 0 | S27: 0 | T27: 0 | U27: 0
A28: B/I/1/1/4 | B28: Szybka Kolej Miejska | C28: 4 podzadanie | D28: NIE | E28: 600 | F28: 60004 | J28: =SUM(J29:J30) -> 0 | M28: 0 | P28: 0 | Q28: 0 | R28: 0 | S28: 0 | T28: 0 | U28: 0
A29: B/I/1/1/4 | B29: Szybka Kolej Miejska | C29: 4 podzadanie | D29: NIE | E29: 600 | F29: 60004 | G29: 4300 | H29: Zakup usług pozostałych | I29: GMMW | T29: 0 | U29: 0
A30: B/I/1/1/4 | B30: Szybka Kolej Miejska | C30: 4 podzadanie | D30: NIE | E30: 600 | F30: 60004 | G30: 4530 | H30: Podatek od towarów i usług (VAT) | I30: GMMW | T30: 0 | U30: 0
A31: B/I/1/1/5 | B31: Tramwaje Warszawskie | C31: 5 podzadanie | D31: T | E31: 600 | F31: 60004 | J31: =SUM(J32) -> 0 | M31: 0 | P31: 0 | Q31: 0 | R31: 0 | S31: 0 | T31: 0 | U31: 0
A32: B/I/1/1/5 | B32: Tramwaje Warszawskie | C32: 5 podzadanie | D32: NIE | E32: 600 | F32: 60004 | J32: =SUM(J33:J34) -> 0 | M32: 0 | P32: 0 | Q32: 0 | R32: 0 | S32: 0 | T32: 0 | U32: 0
A33: B/I/1/1/5 | B33: Tramwaje Warszawskie | C33: 5 podzadanie | D33: NIE | E33: 600 | F33: 60004 | G33: 4300 | H33: Zakup usług pozostałych | I33: GMMW | T33: 0 | U33: 0
A34: B/I/1/1/5 | B34: Tramwaje Warszawskie | C34: 5 podzadanie | D34: NIE | E34: 600 | F34: 60004 | G34: 4530 | H34: Podatek od towarów i usług (VAT) | I34: GMMW | T34: 0 | U34: 0
A35: B/I/1/1/6 | B35: Pozostali przewoźnicy kolejowi | C35: 6 podzadanie | D35: T | E35: 600 | F35: 60004 | J35: =SUM(J36) -> 0 | M35: 0 | P35: 0 | Q35: 0 | R35: 0 | S35: 0 | T35: 0 | U35: 0
A36: B/I/1/1/6 | B36: Pozostali przewoźnicy kolejowi | C36: 6 podzadanie | D36: NIE | E36: 600 | F36: 60004 | J36: =SUM(J37:J38) -> 0 | M36: 0 | P36: 0 | Q36: 0 | R36: 0 | S36: 0 | T36: 0 | U36: 0
A37: B/I/1/1/6 | B37: Pozostali przewoźnicy kolejowi | C37: 6 podzadanie | D37: NIE | E37: 600 | F37: 60004 | G37: 4300 | H37: Zakup usług pozostałych | I37: GMMW | T37: 0 | U37: 0
A38: B/I/1/1/6 | B38: Pozostali przewoźnicy kolejowi | C38: 6 podzadanie | D38: NIE | E38: 600 | F38: 60004 | G38: 4530 | H38: Podatek od towarów i usług (VAT) | I38: GMMW | T38: 0 | U38: 0
A39: B/I/1/2 | B39: Zarządzanie komunikacją miejską | C39: 2 zadanie | D39: T | J39: =SUM(J124,J114,J40) -> 0 | M39: 0 | P39: 0 | Q39: 0 | R39: 0 | S39: 0 | T39: 0 | U39: 0
A40: B/I/1/2/1 | B40: Utrzymanie Zarządu Transportu Miejskiego, w tym obsługa inwestycji | C40: 1 podzadanie | D40: T | E40: 600 | F40: 60004 | J40: =SUM(J41) -> 0 | M40: 0 | P40: 0 | Q40: 0 | R40: 0 | S40: 0 | T40: 0 | U40: 0
A41: B/I/1/2/1 | B41: Utrzymanie Zarządu Transportu Miejskiego, w tym obsługa inwestycji | C41: 1 podzadanie | D41: NIE | E41: 600 | F41: 60004 | J41: =SUM(J42:J113) -> 0 | M41: 0 | P41: 0 | Q41: 0 | R41: 0 | S41: 0 | T41: 0 | U41: 0
A42: B/I/1/2/1 | B42: Utrzymanie Zarządu Transportu Miejskiego, w tym obsługa inwestycji | C42: 1 podzadanie | D42: NIE | E42: 600 | F42: 60004 | G42: 3020 | H42: Wydatki osobowe niezaliczone do wynagrodzeń | I42: GMMW | T42: 0 | U42: 0
A43: B/I/1/2/1 | B43: Utrzymanie Zarządu Transportu Miejskiego, w tym obsługa inwestycji | C43: 1 podzadanie | D43: NIE | E43: 600 | F43: 60004 | G43: 4010 | H43: Wynagrodzenia osobowe pracowników | I43: GMMW | T43: 0 | U43: 0
A44: B/I/1/2/1 | B44: Utrzymanie Zarządu Transportu Miejskiego, w tym obsługa inwestycji | C44: 1 podzadanie | D44: NIE | E44: 600 | F44: 60004 | G44: 4017 | H44: Wynagrodzenia osobowe pracowników | I44: SFUE/23/6 | T44: 0 | U44: 0
A45: B/I/1/2/1 | B45: Utrzymanie Zarządu Transportu Miejskiego, w tym obsługa inwestycji | C45: 1 podzadanie | D45: NIE | E45: 600 | F45: 60004 | G45: 4018 | H45: Wynagrodzenia osobowe pracowników | I45: SFUE/8/50 | T45: 0 | U45: 0
A46: B/I/1/2/1 | B46: Utrzymanie Zarządu Transportu Miejskiego, w tym obsługa inwestycji | C46: 1 podzadanie | D46: NIE | E46: 600 | F46: 60004 | G46: 4018 | H46: Wynagrodzenia osobowe pracowników | I46: SFUE/8/59 | T46: 0 | U46: 0
A47: B/I/1/2/1 | B47: Utrzymanie Zarządu Transportu Miejskiego, w tym obsługa inwestycji | C47: 1 podzadanie | D47: NIE | E47: 600 | F47: 60004 | G47: 4018 | H47: Wynagrodzenia osobowe pracowników | I47: SFUE/8/60 | T47: 0 | U47: 0
A48: B/I/1/2/1 | B48: Utrzymanie Zarządu Transportu Miejskiego, w tym obsługa inwestycji | C48: 1 podzadanie | D48: NIE | E48: 600 | F48: 60004 | G48: 4018 | H48: Wynagrodzenia osobowe pracowników | I48: SFUE/8/61 | T48: 0 | U48: 0
A49: B/I/1/2/1 | B49: Utrzymanie Zarządu Transportu Miejskiego, w tym obsługa inwestycji | C49: 1 podzadanie | D49: NIE | E49: 600 | F49: 60004 | G49: 4019 | H49: Wynagrodzenia osobowe pracowników | I49: SFUE/23/6 | T49: 0 | U49: 0
A50: B/I/1/2/1 | B50: Utrzymanie Zarządu Transportu Miejskiego, w tym obsługa inwestycji | C50: 1 podzadanie | D50: NIE | E50: 600 | F50: 60004 | G50: 4019 | H50: Wynagrodzenia osobowe pracowników | I50: SFUE/8/60 | T50: 0 | U50: 0
A51: B/I/1/2/1 | B51: Utrzymanie Zarządu Transportu Miejskiego, w tym obsługa inwestycji | C51: 1 podzadanie | D51: NIE | E51: 600 | F51: 60004 | G51: 4019 | H51: Wynagrodzenia osobowe pracowników | I51: SFUE/8/61 | T51: 0 | U51: 0
A52: B/I/1/2/1 | B52: Utrzymanie Zarządu Transportu Miejskiego, w tym obsługa inwestycji | C52: 1 podzadanie | D52: NIE | E52: 600 | F52: 60004 | G52: 4040 | H52: Dodatkowe wynagrodzenie roczne | I52: GMMW | T52: 0 | U52: 0
A53: B/I/1/2/1 | B53: Utrzymanie Zarządu Transportu Miejskiego, w tym obsługa inwestycji | C53: 1 podzadanie | D53: NIE | E53: 600 | F53: 60004 | G53: 4047 | H53: Dodatkowe wynagrodzenie roczne | I53: SFUE/23/6 | T53: 0 | U53: 0
A54: B/I/1/2/1 | B54: Utrzymanie Zarządu Transportu Miejskiego, w tym obsługa inwestycji | C54: 1 podzadanie | D54: NIE | E54: 600 | F54: 60004 | G54: 4048 | H54: Dodatkowe wynagrodzenie roczne | I54: SFUE/8/59 | T54: 0 | U54: 0
A55: B/I/1/2/1 | B55: Utrzymanie Zarządu Transportu Miejskiego, w tym obsługa inwestycji | C55: 1 podzadanie | D55: NIE | E55: 600 | F55: 60004 | G55: 4049 | H55: Dodatkowe wynagrodzenie roczne | I55: SFUE/23/6 | T55: 0 | U55: 0
A56: B/I/1/2/1 | B56: Utrzymanie Zarządu Transportu Miejskiego, w tym obsługa inwestycji | C56: 1 podzadanie | D56: NIE | E56: 600 | F56: 60004 | G56: 4110 | H56: Składki na ubezpieczenia społeczne | I56: GMMW | T56: 0 | U56: 0
A57: B/I/1/2/1 | B57: Utrzymanie Zarządu Transportu Miejskiego, w tym obsługa inwestycji | C57: 1 podzadanie | D57: NIE | E57: 600 | F57: 60004 | G57: 4117 | H57: Składki na ubezpieczenia społeczne | I57: SFUE/23/6 | T57: 0 | U57: 0
A58: B/I/1/2/1 | B58: Utrzymanie Zarządu Transportu Miejskiego, w tym obsługa inwestycji | C58: 1 podzadanie | D58: NIE | E58: 600 | F58: 60004 | G58: 4118 | H58: Składki na ubezpieczenia społeczne | I58: SFUE/8/50 | T58: 0 | U58: 0
A59: B/I/1/2/1 | B59: Utrzymanie Zarządu Transportu Miejskiego, w tym obsługa inwestycji | C59: 1 podzadanie | D59: NIE | E59: 600 | F59: 60004 | G59: 4118 | H59: Składki na ubezpieczenia społeczne | I59: SFUE/8/59 | T59: 0 | U59: 0
A60: B/I/1/2/1 | B60: Utrzymanie Zarządu Transportu Miejskiego, w tym obsługa inwestycji | C60: 1 podzadanie | D60: NIE | E60: 600 | F60: 60004 | G60: 4118 | H60: Składki na ubezpieczenia społeczne | I60: SFUE/8/60 | T60: 0 | U60: 0
A61: B/I/1/2/1 | B61: Utrzymanie Zarządu Transportu Miejskiego, w tym obsługa inwestycji | C61: 1 podzadanie | D61: NIE | E61: 600 | F61: 60004 | G61: 4118 | H61: Składki na ubezpieczenia społeczne | I61: SFUE/8/61 | T61: 0 | U61: 0
A62: B/I/1/2/1 | B62: Utrzymanie Zarządu Transportu Miejskiego, w tym obsługa inwestycji | C62: 1 podzadanie | D62: NIE | E62: 600 | F62: 60004 | G62: 4119 | H62: Składki na ubezpieczenia społeczne | I62: SFUE/23/6 | T62: 0 | U62: 0
A63: B/I/1/2/1 | B63: Utrzymanie Zarządu Transportu Miejskiego, w tym obsługa inwestycji | C63: 1 podzadanie | D63: NIE | E63: 600 | F63: 60004 | G63: 4119 | H63: Składki na ubezpieczenia społeczne | I63: SFUE/8/60 | T63: 0 | U63: 0
A64: B/I/1/2/1 | B64: Utrzymanie Zarządu Transportu Miejskiego, w tym obsługa inwestycji | C64: 1 podzadanie | D64: NIE | E64: 600 | F64: 60004 | G64: 4119 | H64: Składki na ubezpieczenia społeczne | I64: SFUE/8/61 | T64: 0 | U64: 0
A65: B/I/1/2/1 | B65: Utrzymanie Zarządu Transportu Miejskiego, w tym obsługa inwestycji | C65: 1 podzadanie | D65: NIE | E65: 600 | F65: 60004 | G65: 4120 | H65: Składki na Fundusz Pracy oraz Fundusz Solidarnościowy | I65: GMMW | T65: 0 | U65: 0
A66: B/I/1/2/1 | B66: Utrzymanie Zarządu Transportu Miejskiego, w tym obsługa inwestycji | C66: 1 podzadanie | D66: NIE | E66: 600 | F66: 60004 | G66: 4127 | H66: Składki na Fundusz Pracy oraz Fundusz Solidarnościowy | I66: SFUE/23/6 | T66: 0 | U66: 0
A67: B/I/1/2/1 | B67: Utrzymanie Zarządu Transportu Miejskiego, w tym obsługa inwestycji | C67: 1 podzadanie | D67: NIE | E67: 600 | F67: 60004 | G67: 4128 | H67: Składki na Fundusz Pracy oraz Fundusz Solidarnościowy | I67: SFUE/8/50 | T67: 0 | U67: 0
A68: B/I/1/2/1 | B68: Utrzymanie Zarządu Transportu Miejskiego, w tym obsługa inwestycji | C68: 1 podzadanie | D68: NIE | E68: 600 | F68: 60004 | G68: 4128 | H68: Składki na Fundusz Pracy oraz Fundusz Solidarnościowy | I68: SFUE/8/59 | T68: 0 | U68: 0
A69: B/I/1/2/1 | B69: Utrzymanie Zarządu Transportu Miejskiego, w tym obsługa inwestycji | C69: 1 podzadanie | D69: NIE | E69: 600 | F69: 60004 | G69: 4128 | H69: Składki na Fundusz Pracy oraz Fundusz Solidarnościowy | I69: SFUE/8/60 | T69: 0 | U69: 0
A70: B/I/1/2/1 | B70: Utrzymanie Zarządu Transportu Miejskiego, w tym obsługa inwestycji | C70: 1 podzadanie | D70: NIE | E70: 600 | F70: 60004 | G70: 4128 | H70: Składki na Fundusz Pracy oraz Fundusz Solidarnościowy | I70: SFUE/8/61 | T70: 0 | U70: 0
A71: B/I/1/2/1 | B71: Utrzymanie Zarządu Transportu Miejskiego, w tym obsługa inwestycji | C71: 1 podzadanie | D71: NIE | E71: 600 | F71: 60004 | G71: 4129 | H71: Składki na Fundusz Pracy oraz Fundusz Solidarnościowy | I71: SFUE/23/6 | T71: 0 | U71: 0
A72: B/I/1/2/1 | B72: Utrzymanie Zarządu Transportu Miejskiego, w tym obsługa inwestycji | C72: 1 podzadanie | D72: NIE | E72: 600 | F72: 60004 | G72: 4129 | H72: Składki na Fundusz Pracy oraz Fundusz Solidarnościowy | I72: SFUE/8/60 | T72: 0 | U72: 0
A73: B/I/1/2/1 | B73: Utrzymanie Zarządu Transportu Miejskiego, w tym obsługa inwestycji | C73: 1 podzadanie | D73: NIE | E73: 600 | F73: 60004 | G73: 4129 | H73: Składki na Fundusz Pracy oraz Fundusz Solidarnościowy | I73: SFUE/8/61 | T73: 0 | U73: 0
A74: B/I/1/2/1 | B74: Utrzymanie Zarządu Transportu Miejskiego, w tym obsługa inwestycji | C74: 1 podzadanie | D74: NIE | E74: 600 | F74: 60004 | G74: 4140 | H74: Wpłaty na Państwowy Fundusz Rehabilitacji Osób Niepełnosprawnych | I74: GMMW | T74: 0 | U74: 0
A75: B/I/1/2/1 | B75: Utrzymanie Zarządu Transportu Miejskiego, w tym obsługa inwestycji | C75: 1 podzadanie | D75: NIE | E75: 600 | F75: 60004 | G75: 4170 | H75: Wynagrodzenia bezosobowe | I75: GMMW | T75: =J75+Q75-P75 -> 0 | U75: =M75+S75-R75 -> 0 | V75: =IF(SUM(J75:U75)>0,"Tak","") ->  | W75: =IF(SUM(P75:S75)>0,"Tak","") ->  | X75: =IF(OR(J75<M75,T75<U75,P75<R75,Q75<S75),"błędny urząd","") ->  | Y75: =IF(OR(J75<0,M75<0,T75<0,U75<0),"ujemny plan","") -> 
A76: B/I/1/2/1 | B76: Utrzymanie Zarządu Transportu Miejskiego, w tym obsługa inwestycji | C76: 1 podzadanie | D76: NIE | E76: 600 | F76: 60004 | G76: 4190 | H76: Nagrody konkursowe | I76: GMMW | T76: 0 | U76: 0
A77: B/I/1/2/1 | B77: Utrzymanie Zarządu Transportu Miejskiego, w tym obsługa inwestycji | C77: 1 podzadanie | D77: NIE | E77: 600 | F77: 60004 | G77: 4210 | H77: Zakup materiałów i wyposażenia | I77: GMMW/C | T77: 0 | U77: 0
A78: B/I/1/2/1 | B78: Utrzymanie Zarządu Transportu Miejskiego, w tym obsługa inwestycji | C78: 1 podzadanie | D78: NIE | E78: 600 | F78: 60004 | G78: 4210 | H78: Zakup materiałów i wyposażenia | I78: GMMW | T78: 0 | U78: 0
A79: B/I/1/2/1 | B79: Utrzymanie Zarządu Transportu Miejskiego, w tym obsługa inwestycji | C79: 1 podzadanie | D79: NIE | E79: 600 | F79: 60004 | G79: 4260 | H79: Zakup energii | I79: GMMW | T79: 0 | U79: 0
A80: B/I/1/2/1 | B80: Utrzymanie Zarządu Transportu Miejskiego, w tym obsługa inwestycji | C80: 1 podzadanie | D80: NIE | E80: 600 | F80: 60004 | G80: 4270 | H80: Zakup usług remontowych | I80: GMMW | T80: 0 | U80: 0
A81: B/I/1/2/1 | B81: Utrzymanie Zarządu Transportu Miejskiego, w tym obsługa inwestycji | C81: 1 podzadanie | D81: NIE | E81: 600 | F81: 60004 | G81: 4280 | H81: Zakup usług zdrowotnych | I81: GMMW/C | T81: 0 | U81: 0
A82: B/I/1/2/1 | B82: Utrzymanie Zarządu Transportu Miejskiego, w tym obsługa inwestycji | C82: 1 podzadanie | D82: NIE | E82: 600 | F82: 60004 | G82: 4280 | H82: Zakup usług zdrowotnych | I82: GMMW | T82: 0 | U82: 0
A83: B/I/1/2/1 | B83: Utrzymanie Zarządu Transportu Miejskiego, w tym obsługa inwestycji | C83: 1 podzadanie | D83: NIE | E83: 600 | F83: 60004 | G83: 4300 | H83: Zakup usług pozostałych | I83: GMMW | T83: 0 | U83: 0
A84: B/I/1/2/1 | B84: Utrzymanie Zarządu Transportu Miejskiego, w tym obsługa inwestycji | C84: 1 podzadanie | D84: NIE | E84: 600 | F84: 60004 | G84: 4360 | H84: Opłaty z tytułu zakupu usług telekomunikacyjnych | I84: GMMW | T84: 0 | U84: 0
A85: B/I/1/2/1 | B85: Utrzymanie Zarządu Transportu Miejskiego, w tym obsługa inwestycji | C85: 1 podzadanie | D85: NIE | E85: 600 | F85: 60004 | G85: 4380 | H85: Zakup usług obejmujących tłumaczenia | I85: GMMW | T85: 0 | U85: 0
A86: B/I/1/2/1 | B86: Utrzymanie Zarządu Transportu Miejskiego, w tym obsługa inwestycji | C86: 1 podzadanie | D86: NIE | E86: 600 | F86: 60004 | G86: 4390 | H86: Zakup usług obejmujących wykonanie ekspertyz, analiz i opinii | I86: GMMW | T86: 0 | U86: 0
A87: B/I/1/2/1 | B87: Utrzymanie Zarządu Transportu Miejskiego, w tym obsługa inwestycji | C87: 1 podzadanie | D87: NIE | E87: 600 | F87: 60004 | G87: 4400 | H87: Opłaty za administrowanie i czynsze za budynki, lokale i pomieszczenia garażowe | I87: GMMW | T87: 0 | U87: 0
A88: B/I/1/2/1 | B88: Utrzymanie Zarządu Transportu Miejskiego, w tym obsługa inwestycji | C88: 1 podzadanie | D88: NIE | E88: 600 | F88: 60004 | G88: 4410 | H88: Podróże służbowe krajowe | I88: GMMW | T88: 0 | U88: 0
A89: B/I/1/2/1 | B89: Utrzymanie Zarządu Transportu Miejskiego, w tym obsługa inwestycji | C89: 1 podzadanie | D89: NIE | E89: 600 | F89: 60004 | G89: 4420 | H89: Podróże służbowe zagraniczne | I89: GMMW | T89: 0 | U89: 0
A90: B/I/1/2/1 | B90: Utrzymanie Zarządu Transportu Miejskiego, w tym obsługa inwestycji | C90: 1 podzadanie | D90: NIE | E90: 600 | F90: 60004 | G90: 4428 | H90: Podróże służbowe zagraniczne | I90: SFUE/8/50 | T90: 0 | U90: 0
A91: B/I/1/2/1 | B91: Utrzymanie Zarządu Transportu Miejskiego, w tym obsługa inwestycji | C91: 1 podzadanie | D91: NIE | E91: 600 | F91: 60004 | G91: 4428 | H91: Podróże służbowe zagraniczne | I91: SFUE/8/59 | T91: 0 | U91: 0
A92: B/I/1/2/1 | B92: Utrzymanie Zarządu Transportu Miejskiego, w tym obsługa inwestycji | C92: 1 podzadanie | D92: NIE | E92: 600 | F92: 60004 | G92: 4428 | H92: Podróże służbowe zagraniczne | I92: SFUE/8/60 | T92: 0 | U92: 0
A93: B/I/1/2/1 | B93: Utrzymanie Zarządu Transportu Miejskiego, w tym obsługa inwestycji | C93: 1 podzadanie | D93: NIE | E93: 600 | F93: 60004 | G93: 4428 | H93: Podróże służbowe zagraniczne | I93: SFUE/8/61 | T93: 0 | U93: 0
A94: B/I/1/2/1 | B94: Utrzymanie Zarządu Transportu Miejskiego, w tym obsługa inwestycji | C94: 1 podzadanie | D94: NIE | E94: 600 | F94: 60004 | G94: 4429 | H94: Podróże służbowe zagraniczne | I94: SFUE/8/60 | T94: 0 | U94: 0
A95: B/I/1/2/1 | B95: Utrzymanie Zarządu Transportu Miejskiego, w tym obsługa inwestycji | C95: 1 podzadanie | D95: NIE | E95: 600 | F95: 60004 | G95: 4429 | H95: Podróże służbowe zagraniczne | I95: SFUE/8/61 | T95: 0 | U95: 0
A96: B/I/1/2/1 | B96: Utrzymanie Zarządu Transportu Miejskiego, w tym obsługa inwestycji | C96: 1 podzadanie | D96: NIE | E96: 600 | F96: 60004 | G96: 4430 | H96: Różne opłaty i składki | I96: GMMW | T96: 0 | U96: 0
A97: B/I/1/2/1 | B97: Utrzymanie Zarządu Transportu Miejskiego, w tym obsługa inwestycji | C97: 1 podzadanie | D97: NIE | E97: 600 | F97: 60004 | G97: 4440 | H97: Odpisy na zakładowy fundusz świadczeń socjalnych | I97: GMMW | T97: 0 | U97: 0
A98: B/I/1/2/1 | B98: Utrzymanie Zarządu Transportu Miejskiego, w tym obsługa inwestycji | C98: 1 podzadanie | D98: NIE | E98: 600 | F98: 60004 | G98: 4480 | H98: Podatek od nieruchomości | I98: GMMW | T98: 0 | U98: 0
A99: B/I/1/2/1 | B99: Utrzymanie Zarządu Transportu Miejskiego, w tym obsługa inwestycji | C99: 1 podzadanie | D99: NIE | E99: 600 | F99: 60004 | G99: 4510 | H99: Opłaty na rzecz budżetu państwa | I99: GMMW | T99: 0 | U99: 0
A100: B/I/1/2/1 | B100: Utrzymanie Zarządu Transportu Miejskiego, w tym obsługa inwestycji | C100: 1 podzadanie | D100: NIE | E100: 600 | F100: 60004 | G100: 4530 | H100: Podatek od towarów i usług (VAT) | I100: GMMW/C | T100: 0 | U100: 0
A101: B/I/1/2/1 | B101: Utrzymanie Zarządu Transportu Miejskiego, w tym obsługa inwestycji | C101: 1 podzadanie | D101: NIE | E101: 600 | F101: 60004 | G101: 4530 | H101: Podatek od towarów i usług (VAT) | I101: GMMW | T101: 0 | U101: 0
A102: B/I/1/2/1 | B102: Utrzymanie Zarządu Transportu Miejskiego, w tym obsługa inwestycji | C102: 1 podzadanie | D102: NIE | E102: 600 | F102: 60004 | G102: 4540 | H102: Składki do organizacji międzynarodowych | I102: GMMW | T102: 0 | U102: 0
A103: B/I/1/2/1 | B103: Utrzymanie Zarządu Transportu Miejskiego, w tym obsługa inwestycji | C103: 1 podzadanie | D103: NIE | E103: 600 | F103: 60004 | G103: 4590 | H103: Kary i odszkodowania wypłacane na rzecz osób fizycznych | I103: GMMW | T103: 0 | U103: 0
A104: B/I/1/2/1 | B104: Utrzymanie Zarządu Transportu Miejskiego, w tym obsługa inwestycji | C104: 1 podzadanie | D104: NIE | E104: 600 | F104: 60004 | G104: 4600 | H104: Kary, odszkodowania i grzywny wypłacane na rzecz osób prawnych i innych jednostek organizacyjnych | I104: GMMW | T104: 0 | U104: 0
A105: B/I/1/2/1 | B105: Utrzymanie Zarządu Transportu Miejskiego, w tym obsługa inwestycji | C105: 1 podzadanie | D105: NIE | E105: 600 | F105: 60004 | G105: 4610 | H105: Koszty postępowania sądowego i prokuratorskiego | I105: GMMW | T105: 0 | U105: 0
A106: B/I/1/2/1 | B106: Utrzymanie Zarządu Transportu Miejskiego, w tym obsługa inwestycji | C106: 1 podzadanie | D106: NIE | E106: 600 | F106: 60004 | G106: 4700 | H106: Szkolenia pracowników niebędących członkami korpusu służby cywilnej | I106: GMMW/C | T106: 0 | U106: 0
A107: B/I/1/2/1 | B107: Utrzymanie Zarządu Transportu Miejskiego, w tym obsługa inwestycji | C107: 1 podzadanie | D107: NIE | E107: 600 | F107: 60004 | G107: 4700 | H107: Szkolenia pracowników niebędących członkami korpusu służby cywilnej | I107: GMMW | T107: 0 | U107: 0
A108: B/I/1/2/1 | B108: Utrzymanie Zarządu Transportu Miejskiego, w tym obsługa inwestycji | C108: 1 podzadanie | D108: NIE | E108: 600 | F108: 60004 | G108: 4710 | H108: Wpłaty na PPK finansowane przez podmiot zatrudniający | I108: GMMW | T108: 0 | U108: 0
A109: B/I/1/2/1 | B109: Utrzymanie Zarządu Transportu Miejskiego, w tym obsługa inwestycji | C109: 1 podzadanie | D109: NIE | E109: 600 | F109: 60004 | G109: 4718 | H109: Wpłaty na PPK finansowane przez podmiot zatrudniający | I109: SFUE/8/50 | T109: 0 | U109: 0
A110: B/I/1/2/1 | B110: Utrzymanie Zarządu Transportu Miejskiego, w tym obsługa inwestycji | C110: 1 podzadanie | D110: NIE | E110: 600 | F110: 60004 | G110: 4718 | H110: Wpłaty na PPK finansowane przez podmiot zatrudniający | I110: SFUE/8/59 | T110: 0 | U110: 0
A111: B/I/1/2/1 | B111: Utrzymanie Zarządu Transportu Miejskiego, w tym obsługa inwestycji | C111: 1 podzadanie | D111: NIE | E111: 600 | F111: 60004 | G111: 4718 | H111: Wpłaty na PPK finansowane przez podmiot zatrudniający | I111: SFUE/8/61 | T111: 0 | U111: 0
A112: B/I/1/2/1 | B112: Utrzymanie Zarządu Transportu Miejskiego, w tym obsługa inwestycji | C112: 1 podzadanie | D112: NIE | E112: 600 | F112: 60004 | G112: 4719 | H112: Wpłaty na PPK finansowane przez podmiot zatrudniający | I112: SFUE/8/61 | T112: 0 | U112: 0
A113: B/I/1/2/1 | B113: Utrzymanie Zarządu Transportu Miejskiego, w tym obsługa inwestycji | C113: 1 podzadanie | D113: NIE | E113: 600 | F113: 60004 | G113: 4950 | H113: Różnice kursowe | I113: GMMW | T113: 0 | U113: 0
A114: B/I/1/2/2 | B114: Utrzymanie i obsługa systemu biletowego | C114: 2 podzadanie | D114: T | E114: 600 | F114: 60004 | J114: =SUM(J115) -> 0 | M114: 0 | P114: 0 | Q114: 0 | R114: 0 | S114: 0 | T114: 0 | U114: 0
A115: B/I/1/2/2 | B115: Utrzymanie i obsługa systemu biletowego | C115: 2 podzadanie | D115: NIE | E115: 600 | F115: 60004 | J115: =SUM(J116:J123) -> 0 | M115: 0 | P115: 0 | Q115: 0 | R115: 0 | S115: 0 | T115: 0 | U115: 0
A116: B/I/1/2/2 | B116: Utrzymanie i obsługa systemu biletowego | C116: 2 podzadanie | D116: NIE | E116: 600 | F116: 60004 | G116: 4190 | H116: Nagrody konkursowe | I116: GMMW | T116: 0 | U116: 0
A117: B/I/1/2/2 | B117: Utrzymanie i obsługa systemu biletowego | C117: 2 podzadanie | D117: NIE | E117: 600 | F117: 60004 | G117: 4210 | H117: Zakup materiałów i wyposażenia | I117: GMMW | T117: 0 | U117: 0
A118: B/I/1/2/2 | B118: Utrzymanie i obsługa systemu biletowego | C118: 2 podzadanie | D118: NIE | E118: 600 | F118: 60004 | G118: 4260 | H118: Zakup energii | I118: GMMW | T118: 0 | U118: 0
A119: B/I/1/2/2 | B119: Utrzymanie i obsługa systemu biletowego | C119: 2 podzadanie | D119: NIE | E119: 600 | F119: 60004 | G119: 4270 | H119: Zakup usług remontowych | I119: GMMW | T119: 0 | U119: 0
A120: B/I/1/2/2 | B120: Utrzymanie i obsługa systemu biletowego | C120: 2 podzadanie | D120: NIE | E120: 600 | F120: 60004 | G120: 4300 | H120: Zakup usług pozostałych | I120: GMMW | T120: 0 | U120: 0
A121: B/I/1/2/2 | B121: Utrzymanie i obsługa systemu biletowego | C121: 2 podzadanie | D121: NIE | E121: 600 | F121: 60004 | G121: 4400 | H121: Opłaty za administrowanie i czynsze za budynki, lokale i pomieszczenia garażowe | I121: GMMW | T121: 0 | U121: 0
A122: B/I/1/2/2 | B122: Utrzymanie i obsługa systemu biletowego | C122: 2 podzadanie | D122: NIE | E122: 600 | F122: 60004 | G122: 4530 | H122: Podatek od towarów i usług (VAT) | I122: GMMW | T122: 0 | U122: 0
A123: B/I/1/2/2 | B123: Utrzymanie i obsługa systemu biletowego | C123: 2 podzadanie | D123: NIE | E123: 600 | F123: 60004 | G123: 4610 | H123: Koszty postępowania sądowego i prokuratorskiego | I123: GMMW | T123: 0 | U123: 0
A124: B/I/1/2/3 | B124: Organizacja komunikacji, marketing, nadzór i kontrola ruchu | C124: 3 podzadanie | D124: T | J124: =SUM(J162,J155,J125) -> 0 | M124: 0 | P124: 0 | Q124: 0 | R124: 0 | S124: 0 | T124: 0 | U124: 0
A125: B/I/1/2/3 | B125: Organizacja komunikacji, marketing, nadzór i kontrola ruchu | C125: 3 podzadanie | D125: NIE | E125: 600 | F125: 60004 | J125: =SUM(J126:J154) -> 0 | M125: 0 | P125: 0 | Q125: 0 | R125: 0 | S125: 0 | T125: 0 | U125: 0
A126: B/I/1/2/3 | B126: Organizacja komunikacji, marketing, nadzór i kontrola ruchu | C126: 3 podzadanie | D126: NIE | E126: 600 | F126: 60004 | G126: 3020 | H126: Wydatki osobowe niezaliczone do wynagrodzeń | I126: GMMW | T126: 0 | U126: 0
A127: B/I/1/2/3 | B127: Organizacja komunikacji, marketing, nadzór i kontrola ruchu | C127: 3 podzadanie | D127: NIE | E127: 600 | F127: 60004 | G127: 4210 | H127: Zakup materiałów i wyposażenia | I127: GMMW | T127: 0 | U127: 0
A128: B/I/1/2/3 | B128: Organizacja komunikacji, marketing, nadzór i kontrola ruchu | C128: 3 podzadanie | D128: NIE | E128: 600 | F128: 60004 | G128: 4218 | H128: Zakup materiałów i wyposażenia | I128: SFUE/8/50 | T128: 0 | U128: 0
A129: B/I/1/2/3 | B129: Organizacja komunikacji, marketing, nadzór i kontrola ruchu | C129: 3 podzadanie | D129: NIE | E129: 600 | F129: 60004 | G129: 4218 | H129: Zakup materiałów i wyposażenia | I129: SFUE/8/59 | T129: 0 | U129: 0
A130: B/I/1/2/3 | B130: Organizacja komunikacji, marketing, nadzór i kontrola ruchu | C130: 3 podzadanie | D130: NIE | E130: 600 | F130: 60004 | G130: 4218 | H130: Zakup materiałów i wyposażenia | I130: SFUE/8/60 | T130: 0 | U130: 0
A131: B/I/1/2/3 | B131: Organizacja komunikacji, marketing, nadzór i kontrola ruchu | C131: 3 podzadanie | D131: NIE | E131: 600 | F131: 60004 | G131: 4218 | H131: Zakup materiałów i wyposażenia | I131: SFUE/8/61 | T131: 0 | U131: 0
A132: B/I/1/2/3 | B132: Organizacja komunikacji, marketing, nadzór i kontrola ruchu | C132: 3 podzadanie | D132: NIE | E132: 600 | F132: 60004 | G132: 4219 | H132: Zakup materiałów i wyposażenia | I132: SFUE/8/61 | T132: 0 | U132: 0
A133: B/I/1/2/3 | B133: Organizacja komunikacji, marketing, nadzór i kontrola ruchu | C133: 3 podzadanie | D133: NIE | E133: 600 | F133: 60004 | G133: 4270 | H133: Zakup usług remontowych | I133: GMMW | T133: 0 | U133: 0
A134: B/I/1/2/3 | B134: Organizacja komunikacji, marketing, nadzór i kontrola ruchu | C134: 3 podzadanie | D134: NIE | E134: 600 | F134: 60004 | G134: 4300 | H134: Zakup usług pozostałych | I134: GMMW | T134: 0 | U134: 0
A135: B/I/1/2/3 | B135: Organizacja komunikacji, marketing, nadzór i kontrola ruchu | C135: 3 podzadanie | D135: NIE | E135: 600 | F135: 60004 | G135: 4307 | H135: Zakup usług pozostałych | I135: SFUE/23/6 | T135: 0 | U135: 0
A136: B/I/1/2/3 | B136: Organizacja komunikacji, marketing, nadzór i kontrola ruchu | C136: 3 podzadanie | D136: NIE | E136: 600 | F136: 60004 | G136: 4308 | H136: Zakup usług pozostałych | I136: SFUE/8/50 | T136: 0 | U136: 0
A137: B/I/1/2/3 | B137: Organizacja komunikacji, marketing, nadzór i kontrola ruchu | C137: 3 podzadanie | D137: NIE | E137: 600 | F137: 60004 | G137: 4308 | H137: Zakup usług pozostałych | I137: SFUE/8/59 | T137: 0 | U137: 0
A138: B/I/1/2/3 | B138: Organizacja komunikacji, marketing, nadzór i kontrola ruchu | C138: 3 podzadanie | D138: NIE | E138: 600 | F138: 60004 | G138: 4308 | H138: Zakup usług pozostałych | I138: SFUE/8/60 | T138: 0 | U138: 0
A139: B/I/1/2/3 | B139: Organizacja komunikacji, marketing, nadzór i kontrola ruchu | C139: 3 podzadanie | D139: NIE | E139: 600 | F139: 60004 | G139: 4308 | H139: Zakup usług pozostałych | I139: SFUE/8/61 | T139: =J139+Q139-P139 -> 0 | U139: =M139+S139-R139 -> 0 | V139: =IF(SUM(J139:U139)>0,"Tak","") ->  | W139: =IF(SUM(P139:S139)>0,"Tak","") ->  | X139: =IF(OR(J139<M139,T139<U139,P139<R139,Q139<S139),"błędny urząd","") ->  | Y139: =IF(OR(J139<0,M139<0,T139<0,U139<0),"ujemny plan","") -> 
A140: B/I/1/2/3 | B140: Organizacja komunikacji, marketing, nadzór i kontrola ruchu | C140: 3 podzadanie | D140: NIE | E140: 600 | F140: 60004 | G140: 4309 | H140: Zakup usług pozostałych | I140: SFUE/23/6 | T140: 0 | U140: 0
A141: B/I/1/2/3 | B141: Organizacja komunikacji, marketing, nadzór i kontrola ruchu | C141: 3 podzadanie | D141: NIE | E141: 600 | F141: 60004 | G141: 4309 | H141: Zakup usług pozostałych | I141: SFUE/8/61 | T141: 0 | U141: 0
A142: B/I/1/2/3 | B142: Organizacja komunikacji, marketing, nadzór i kontrola ruchu | C142: 3 podzadanie | D142: NIE | E142: 600 | F142: 60004 | G142: 4388 | H142: Zakup usług obejmujących tłumaczenia | I142: SFUE/8/50 | T142: 0 | U142: 0
A143: B/I/1/2/3 | B143: Organizacja komunikacji, marketing, nadzór i kontrola ruchu | C143: 3 podzadanie | D143: NIE | E143: 600 | F143: 60004 | G143: 4388 | H143: Zakup usług obejmujących tłumaczenia | I143: SFUE/8/59 | T143: 0 | U143: 0
A144: B/I/1/2/3 | B144: Organizacja komunikacji, marketing, nadzór i kontrola ruchu | C144: 3 podzadanie | D144: NIE | E144: 600 | F144: 60004 | G144: 4388 | H144: Zakup usług obejmujących tłumaczenia | I144: SFUE/8/60 | T144: 0 | U144: 0
A145: B/I/1/2/3 | B145: Organizacja komunikacji, marketing, nadzór i kontrola ruchu | C145: 3 podzadanie | D145: NIE | E145: 600 | F145: 60004 | G145: 4388 | H145: Zakup usług obejmujących tłumaczenia | I145: SFUE/8/61 | T145: 0 | U145: 0
A146: B/I/1/2/3 | B146: Organizacja komunikacji, marketing, nadzór i kontrola ruchu | C146: 3 podzadanie | D146: NIE | E146: 600 | F146: 60004 | G146: 4389 | H146: Zakup usług obejmujących tłumaczenia | I146: SFUE/8/61 | T146: 0 | U146: 0
A147: B/I/1/2/3 | B147: Organizacja komunikacji, marketing, nadzór i kontrola ruchu | C147: 3 podzadanie | D147: NIE | E147: 600 | F147: 60004 | G147: 4390 | H147: Zakup usług obejmujących wykonanie ekspertyz, analiz i opinii | I147: GMMW | T147: 0 | U147: 0
A148: B/I/1/2/3 | B148: Organizacja komunikacji, marketing, nadzór i kontrola ruchu | C148: 3 podzadanie | D148: NIE | E148: 600 | F148: 60004 | G148: 4398 | H148: Zakup usług obejmujących wykonanie ekspertyz, analiz i opinii | I148: SFUE/8/50 | T148: 0 | U148: 0
A149: B/I/1/2/3 | B149: Organizacja komunikacji, marketing, nadzór i kontrola ruchu | C149: 3 podzadanie | D149: NIE | E149: 600 | F149: 60004 | G149: 4398 | H149: Zakup usług obejmujących wykonanie ekspertyz, analiz i opinii | I149: SFUE/8/59 | T149: 0 | U149: 0
A150: B/I/1/2/3 | B150: Organizacja komunikacji, marketing, nadzór i kontrola ruchu | C150: 3 podzadanie | D150: NIE | E150: 600 | F150: 60004 | G150: 4398 | H150: Zakup usług obejmujących wykonanie ekspertyz, analiz i opinii | I150: SFUE/8/60 | T150: 0 | U150: 0
A151: B/I/1/2/3 | B151: Organizacja komunikacji, marketing, nadzór i kontrola ruchu | C151: 3 podzadanie | D151: NIE | E151: 600 | F151: 60004 | G151: 4398 | H151: Zakup usług obejmujących wykonanie ekspertyz, analiz i opinii | I151: SFUE/8/61 | T151: 0 | U151: 0
A152: B/I/1/2/3 | B152: Organizacja komunikacji, marketing, nadzór i kontrola ruchu | C152: 3 podzadanie | D152: NIE | E152: 600 | F152: 60004 | G152: 4399 | H152: Zakup usług obejmujących wykonanie ekspertyz, analiz i opinii | I152: SFUE/8/61 | T152: 0 | U152: 0
A153: B/I/1/2/3 | B153: Organizacja komunikacji, marketing, nadzór i kontrola ruchu | C153: 3 podzadanie | D153: NIE | E153: 600 | F153: 60004 | G153: 4530 | H153: Podatek od towarów i usług (VAT) | I153: GMMW | T153: 0 | U153: 0
A154: B/I/1/2/3 | B154: Organizacja komunikacji, marketing, nadzór i kontrola ruchu | C154: 3 podzadanie | D154: NIE | E154: 600 | F154: 60004 | G154: 4530 | H154: Podatek od towarów i usług (VAT) | I154: SFUE/23/6 | T154: 0 | U154: 0
A155: B/I/1/2/3 | B155: Organizacja komunikacji, marketing, nadzór i kontrola ruchu | C155: 3 podzadanie | D155: NIE | E155: 600 | F155: 60022 | J155: =SUM(J156:J161) -> 0 | M155: 0 | P155: 0 | Q155: 0 | R155: 0 | S155: 0 | T155: 0 | U155: 0
A156: B/I/1/2/3 | B156: Organizacja komunikacji, marketing, nadzór i kontrola ruchu | C156: 3 podzadanie | D156: NIE | E156: 600 | F156: 60022 | G156: 4210 | H156: Zakup materiałów i wyposażenia | I156: BO/24/00/0011 | T156: 0 | U156: 0
A157: B/I/1/2/3 | B157: Organizacja komunikacji, marketing, nadzór i kontrola ruchu | C157: 3 podzadanie | D157: NIE | E157: 600 | F157: 60022 | G157: 4210 | H157: Zakup materiałów i wyposażenia | I157: GMMW | T157: 0 | U157: 0
A158: B/I/1/2/3 | B158: Organizacja komunikacji, marketing, nadzór i kontrola ruchu | C158: 3 podzadanie | D158: NIE | E158: 600 | F158: 60022 | G158: 4270 | H158: Zakup usług remontowych | I158: GMMW | T158: 0 | U158: 0
A159: B/I/1/2/3 | B159: Organizacja komunikacji, marketing, nadzór i kontrola ruchu | C159: 3 podzadanie | D159: NIE | E159: 600 | F159: 60022 | G159: 4300 | H159: Zakup usług pozostałych | I159: BO/22/00/0001 | T159: 0 | U159: 0
A160: B/I/1/2/3 | B160: Organizacja komunikacji, marketing, nadzór i kontrola ruchu | C160: 3 podzadanie | D160: NIE | E160: 600 | F160: 60022 | G160: 4300 | H160: Zakup usług pozostałych | I160: GMMW | T160: 0 | U160: 0
A161: B/I/1/2/3 | B161: Organizacja komunikacji, marketing, nadzór i kontrola ruchu | C161: 3 podzadanie | D161: NIE | E161: 600 | F161: 60022 | G161: 4430 | H161: Różne opłaty i składki | I161: GMMW | T161: 0 | U161: 0
A162: B/I/1/2/3 | B162: Organizacja komunikacji, marketing, nadzór i kontrola ruchu | C162: 3 podzadanie | D162: NIE | E162: 600 | F162: 60095 | J162: =SUM(J163:J164) -> 0 | M162: 0 | P162: 0 | Q162: 0 | R162: 0 | S162: 0 | T162: 0 | U162: 0
A163: B/I/1/2/3 | B163: Organizacja komunikacji, marketing, nadzór i kontrola ruchu | C163: 3 podzadanie | D163: NIE | E163: 600 | F163: 60095 | G163: 4210 | H163: Zakup materiałów i wyposażenia | I163: GMMW | T163: 0 | U163: 0
A164: B/I/1/2/3 | B164: Organizacja komunikacji, marketing, nadzór i kontrola ruchu | C164: 3 podzadanie | D164: NIE | E164: 600 | F164: 60095 | G164: 4300 | H164: Zakup usług pozostałych | I164: GMMW | T164: 0 | U164: 0
A165: B/I/1/3 | B165: Utrzymanie infrastruktury przystankowej | C165: 3 zadanie | D165: T | J165: =SUM(J166) -> 0 | M165: 0 | P165: 0 | Q165: 0 | R165: 0 | S165: 0 | T165: 0 | U165: 0
A166: B/I/1/3 | B166: Utrzymanie infrastruktury przystankowej | C166: 3 zadanie | D166: NIE | E166: 600 | F166: 60020 | J166: =SUM(J167:J177) -> 0 | M166: 0 | P166: 0 | Q166: 0 | R166: 0 | S166: 0 | T166: 0 | U166: 0
A167: B/I/1/3 | B167: Utrzymanie infrastruktury przystankowej | C167: 3 zadanie | D167: NIE | E167: 600 | F167: 60020 | G167: 4210 | H167: Zakup materiałów i wyposażenia | I167: GMMW | T167: 0 | U167: 0
A168: B/I/1/3 | B168: Utrzymanie infrastruktury przystankowej | C168: 3 zadanie | D168: NIE | E168: 600 | F168: 60020 | G168: 4270 | H168: Zakup usług remontowych | I168: GMMW/C | T168: 0 | U168: 0
A169: B/I/1/3 | B169: Utrzymanie infrastruktury przystankowej | C169: 3 zadanie | D169: NIE | E169: 600 | F169: 60020 | G169: 4270 | H169: Zakup usług remontowych | I169: GMMW | T169: 0 | U169: 0
A170: B/I/1/3 | B170: Utrzymanie infrastruktury przystankowej | C170: 3 zadanie | D170: NIE | E170: 600 | F170: 60020 | G170: 4270 | H170: Zakup usług remontowych | I170: GUPP | T170: 0 | U170: 0
A171: B/I/1/3 | B171: Utrzymanie infrastruktury przystankowej | C171: 3 zadanie | D171: NIE | E171: 600 | F171: 60020 | G171: 4300 | H171: Zakup usług pozostałych | I171: BO/24/04/0085 | T171: 0 | U171: 0
A172: B/I/1/3 | B172: Utrzymanie infrastruktury przystankowej | C172: 3 zadanie | D172: NIE | E172: 600 | F172: 60020 | G172: 4300 | H172: Zakup usług pozostałych | I172: GMMW/C | T172: 0 | U172: 0
A173: B/I/1/3 | B173: Utrzymanie infrastruktury przystankowej | C173: 3 zadanie | D173: NIE | E173: 600 | F173: 60020 | G173: 4300 | H173: Zakup usług pozostałych | I173: GMMW | T173: 0 | U173: 0
A174: B/I/1/3 | B174: Utrzymanie infrastruktury przystankowej | C174: 3 zadanie | D174: NIE | E174: 600 | F174: 60020 | G174: 4520 | H174: Opłaty na rzecz budżetów jednostek samorządu terytorialnego | I174: GMMW | T174: 0 | U174: 0
A175: B/I/1/3 | B175: Utrzymanie infrastruktury przystankowej | C175: 3 zadanie | D175: NIE | E175: 600 | F175: 60020 | G175: 4530 | H175: Podatek od towarów i usług (VAT) | I175: BO/24/04/0085 | T175: 0 | U175: 0
A176: B/I/1/3 | B176: Utrzymanie infrastruktury przystankowej | C176: 3 zadanie | D176: NIE | E176: 600 | F176: 60020 | G176: 4530 | H176: Podatek od towarów i usług (VAT) | I176: GMMW/C | T176: 0 | U176: 0
A177: B/I/1/3 | B177: Utrzymanie infrastruktury przystankowej | C177: 3 zadanie | D177: NIE | E177: 600 | F177: 60020 | G177: 4530 | H177: Podatek od towarów i usług (VAT) | I177: GMMW | T177: 0 | U177: 0
A178: B/I/1/4 | B178: Opracowania i analizy związane z komunikacją miejską | C178: 4 zadanie | D178: T | J178: =SUM(J185,J179) -> 0 | M178: 0 | P178: 0 | Q178: 0 | R178: 0 | S178: 0 | T178: 0 | U178: 0
A179: B/I/1/4 | B179: Opracowania i analizy związane z komunikacją miejską | C179: 4 zadanie | D179: NIE | E179: 600 | F179: 60004 | J179: =SUM(J180:J184) -> 0 | M179: 0 | P179: 0 | Q179: 0 | R179: 0 | S179: 0 | T179: 0 | U179: 0
A180: B/I/1/4 | B180: Opracowania i analizy związane z komunikacją miejską | C180: 4 zadanie | D180: NIE | E180: 600 | F180: 60004 | G180: 2310 | H180: Dotacja celowa przekazana gminie na zadania bieżące realizowane na podstawie porozumień (umów) między jednostkami samorządu terytorialnego | I180: GMMW | T180: 0 | U180: 0
A181: B/I/1/4 | B181: Opracowania i analizy związane z komunikacją miejską | C181: 4 zadanie | D181: NIE | E181: 600 | F181: 60004 | G181: 4390 | H181: Zakup usług obejmujących wykonanie ekspertyz, analiz i opinii | I181: SFUE/8/57 | T181: 0 | U181: 0
A182: B/I/1/4 | B182: Opracowania i analizy związane z komunikacją miejską | C182: 4 zadanie | D182: NIE | E182: 600 | F182: 60004 | G182: 4397 | H182: Zakup usług obejmujących wykonanie ekspertyz, analiz i opinii | I182: SFUE/8/57 | T182: 0 | U182: 0
A183: B/I/1/4 | B183: Opracowania i analizy związane z komunikacją miejską | C183: 4 zadanie | D183: NIE | E183: 600 | F183: 60004 | G183: 4399 | H183: Zakup usług obejmujących wykonanie ekspertyz, analiz i opinii | I183: SFUE/8/57 | T183: 0 | U183: 0
A184: B/I/1/4 | B184: Opracowania i analizy związane z komunikacją miejską | C184: 4 zadanie | D184: NIE | E184: 600 | F184: 60004 | G184: 4530 | H184: Podatek od towarów i usług (VAT) | I184: SFUE/8/57 | T184: 0 | U184: 0
A185: B/I/1/4 | B185: Opracowania i analizy związane z komunikacją miejską | C185: 4 zadanie | D185: NIE | E185: 600 | F185: 60095 | J185: =SUM(J186:J187,J191:J193,J197) -> 0 | M185: 0 | P185: 0 | Q185: 0 | R185: 0 | S185: 0 | T185: 0 | U185: 0
A186: B/I/1/4 | B186: Opracowania i analizy związane z komunikacją miejską | C186: 4 zadanie | D186: NIE | E186: 600 | F186: 60095 | G186: 4300 | H186: Zakup usług pozostałych | I186: GMMW | T186: 0 | U186: 0
A187: B/I/1/4 | B187: Opracowania i analizy związane z komunikacją miejską | C187: 4 zadanie | D187: NIE | E187: 600 | F187: 60095 | G187: 4309 | H187: Zakup usług pozostałych | J187: =SUM(J188:J190) -> 0 | M187: 0 | P187: 0 | Q187: 0 | R187: 0 | S187: 0 | T187: 0 | U187: 0
A188: B/I/1/4 | B188: Opracowania i analizy związane z komunikacją miejską | C188: 4 zadanie | D188: NIE | E188: 600 | F188: 60095 | G188: 4309 | H188: +000 | I188: SFUE/22/5 | T188: 0 | U188: 0
A189: B/I/1/4 | B189: Opracowania i analizy związane z komunikacją miejską | C189: 4 zadanie | D189: NIE | E189: 600 | F189: 60095 | G189: 4309 | H189: +001 | I189: SFUE/22/5 | T189: 0 | U189: 0
A190: B/I/1/4 | B190: Opracowania i analizy związane z komunikacją miejską | C190: 4 zadanie | D190: NIE | E190: 600 | F190: 60095 | G190: 4309 | H190: +002 | I190: SFUE/22/5 | T190: 0 | U190: 0
A191: B/I/1/4 | B191: Opracowania i analizy związane z komunikacją miejską | C191: 4 zadanie | D191: NIE | E191: 600 | F191: 60095 | G191: 4390 | H191: Zakup usług obejmujących wykonanie ekspertyz, analiz i opinii | I191: GMMW | T191: 0 | U191: 0
A192: B/I/1/4 | B192: Opracowania i analizy związane z komunikacją miejską | C192: 4 zadanie | D192: NIE | E192: 600 | F192: 60095 | G192: 4398 | H192: Zakup usług obejmujących wykonanie ekspertyz, analiz i opinii | I192: SFUE/22/5 | T192: 0 | U192: 0
A193: B/I/1/4 | B193: Opracowania i analizy związane z komunikacją miejską | C193: 4 zadanie | D193: NIE | E193: 600 | F193: 60095 | G193: 4399 | H193: Zakup usług obejmujących wykonanie ekspertyz, analiz i opinii | J193: =SUM(J194:J196) -> 0 | M193: 0 | P193: 0 | Q193: 0 | R193: 0 | S193: 0 | T193: 0 | U193: 0
A194: B/I/1/4 | B194: Opracowania i analizy związane z komunikacją miejską | C194: 4 zadanie | D194: NIE | E194: 600 | F194: 60095 | G194: 4399 | H194: +000 | I194: SFUE/22/5 | T194: 0 | U194: 0
A195: B/I/1/4 | B195: Opracowania i analizy związane z komunikacją miejską | C195: 4 zadanie | D195: NIE | E195: 600 | F195: 60095 | G195: 4399 | H195: +001 | I195: SFUE/22/5 | T195: 0 | U195: 0
A196: B/I/1/4 | B196: Opracowania i analizy związane z komunikacją miejską | C196: 4 zadanie | D196: NIE | E196: 600 | F196: 60095 | G196: 4399 | H196: +002 | I196: SFUE/22/5 | T196: 0 | U196: 0
A197: B/I/1/4 | B197: Opracowania i analizy związane z komunikacją miejską | C197: 4 zadanie | D197: NIE | E197: 600 | F197: 60095 | G197: 4530 | H197: Podatek od towarów i usług (VAT) | I197: GMMW | T197: 0 | U197: 0
A198: I/2 | B198: Drogi i mosty | C198: 2 program | D198: T | J198: =SUM(J415,J330,J318,J297,J291,J284,J199) -> 12811549 | K198: =SUM(K415,K330,K318,K297,K291,K284,K199) -> 12668825.24 | L198: =K198/J198 -> 0.9888597577 | M198: 12811549 | N198: =SUM(N415,N330,N318,N297,N291,N284,N199) -> 12668825.24 | O198: =N198/M198 -> 0.9888597577 | P198: 0 | Q198: 0 | R198: 0 | S198: 0 | T198: 12811549 | U198: 12811549 | V198: Tak
A199: B/I/2/1 | B199: Utrzymanie i remonty dróg | C199: 1 zadanie | D199: T | J199: =SUM(J273,J234,J200) -> 12446988 | K199: =SUM(K273,K234,K200) -> 12312107 | L199: 0.9891635631 | M199: 12446988 | N199: =SUM(N273,N234,N200) -> 12312107 | O199: 0.9891635631 | P199: 0 | Q199: 0 | R199: 0 | S199: 0 | T199: 12446988 | U199: 12446988 | V199: Tak
A200: B/I/2/1/1 | B200: Utrzymanie i remonty dróg gminnych | C200: 1 podzadanie | D200: T | J200: =SUM(J232,J201) -> 11525586 | K200: =SUM(K232,K201) -> 11393143.57 | L200: 0.9885088333 | M200: 11525586 | N200: =SUM(N232,N201) -> 11393143.57 | O200: 0.9885088333 | P200: 0 | Q200: 0 | R200: 0 | S200: 0 | T200: 11525586 | U200: 11525586 | V200: Tak
A201: B/I/2/1/1 | B201: Utrzymanie i remonty dróg gminnych | C201: 1 podzadanie | D201: NIE | E201: 600 | F201: 60016 | J201: =SUM(J202:J231) -> 11525586 | K201: =SUM(K202:K231) -> 11393143.57 | L201: 0.9885088333 | M201: 11525586 | N201: =SUM(N202:N231) -> 11393143.57 | O201: 0.9885088333 | P201: 0 | Q201: 0 | R201: 0 | S201: 0 | T201: 11525586 | U201: 11525586 | V201: Tak
... 2043 more rows
